bitfinex/quotes_ETHUSD_20241109
["timestamp","ask_amount","ask_price","bid_price","bid_amount"]
[1731154398458,0.7733,3042.0,3041.1,0.08727158]
[1731154398657,1.02048139,3041.9,3041.1,0.08727158]
[1731154398816,4.02048139,3041.9,3041.0,0.7681]
[1731154399151,0.77937814,3041.8,3041.0,0.7681]
[1731154401212,0.7733,3042.0,3041.0,0.7681]
[1731154401413,0.7733,3042.0,3041.1,0.88386303]
[1731154401609,0.7737,3042.2,3041.1,0.8181]
[1731154403622,0.7737,3042.2,3040.9,0.140613]
[1731154403623,0.7833,3042.0,3040.9,0.140613]
[1731154403827,0.7833,3042.0,3041.0,0.8126]
[1731154404015,1.16163,3042.0,3041.0,0.8126]
[1731154404216,4.84526131,3042.0,3041.0,0.8126]
[1731154404522,1.16163,3042.0,3041.0,0.8126]
[1731154404723,0.7833,3041.9,3040.9,0.140613]
[1731154406031,0.7833,3041.9,3041.0,0.8126]
[1731154406374,0.18452613,3041.8,3041.0,0.8126]
[1731154407013,0.7833,3041.9,3041.1,0.06576146]
[1731154407254,1.46693131,3042.2,3041.2,0.8126]
[1731154407426,0.7833,3042.2,3041.2,0.8126]
[1731154408844,0.7833,3042.2,3040.9,0.968713]
[1731154409518,0.68363131,3042.1,3040.9,0.968713]
[1731154409720,0.7927,3041.9,3040.9,0.968713]
[1731154410228,0.7927,3041.8,3040.9,0.968713]
[1731154410762,0.7927,3041.8,3040.9,0.140613]
[1731154421583,1.47633131,3041.8,3040.9,0.140613]
[1731154421743,0.7927,3041.8,3040.9,0.140613]
[1731154421941,0.21414446,3041.7,3040.9,0.140613]
[1731154422476,0.7927,3041.6,3040.9,0.140613]
[1731154426984,1.26922266,3042.0,3041.0,0.7654]
[1731154426985,0.24874127,3042.0,3041.0,0.7654]
[1731154427284,0.8284,3041.9,3040.9,0.140613]
[1731154427446,0.8284,3041.7,3040.9,0.140613]
[1731154427787,1.51203131,3041.7,3040.9,0.140613]
[1731154427988,0.8284,3041.6,3040.9,0.140613]
[1731154428446,1.51203131,3041.6,3040.9,0.140613]
[1731154431317,0.68363131,3041.6,3041.1,0.55]
[1731154431482,0.68363131,3041.6,3041.2,0.7642]
[1731154431952,0.68363131,3041.6,3041.3,0.08418969]
[1731154432360,0.68363131,3041.6,3041.2,0.7642]
[1731154432687,0.68363131,3041.6,3041.3,0.08417056]
[1731154432980,0.68363131,3041.6,3041.2,0.7642]
[1731154434582,0.68363131,3041.6,3040.9,0.904813]
[1731154435765,0.68363131,3041.8,3040.9,0.904813]
[1731154437374,4.23093258,3041.8,3040.9,0.904813]
[1731154437821,3.68363131,3041.8,3040.9,0.904813]
[1731154438027,0.68363131,3041.8,3040.9,0.904813]
[1731154440507,0.7689,3041.7,3040.9,0.904813]
[1731154440672,0.68363131,3041.6,3040.9,0.904813]
[1731154441074,0.68363131,3041.5,3040.9,0.904813]
[1731154441271,0.17041127,3041.4,3040.9,0.904813]
[1731154442400,0.85404258,3041.4,3040.9,0.140613]
[1731154444516,0.8237,3041.3,3040.9,0.140613]
[1731154445178,3.68363131,3041.2,3040.9,0.140613]
[1731154445381,0.68363131,3041.1,3040.9,0.140613]
[1731154445685,0.8237,3041.0,3040.9,0.140613]
[1731154447599,0.68363131,3041.1,3040.9,0.140613]
[1731154448107,3.68363131,3041.1,3040.9,0.140613]
[1731154448309,0.68363131,3041.1,3040.9,0.140613]
[1731154450308,1.23641258,3041.1,3040.9,0.140613]
[1731154453202,1.43713131,3041.0,3040.9,0.140613]
[1731154453396,4.43940692,3041.0,3040.9,0.140613]
[1731154454226,1.43940692,3041.0,3040.9,0.140613]
[1731154454424,0.7535,3041.0,3040.9,0.140613]
[1731154454784,0.68590692,3041.1,3040.9,0.140613]
[1731154456296,1.43940692,3041.2,3040.9,0.140613]
[1731154456715,2.00243688,3041.2,3040.9,0.140613]
[1731154458425,0.68590692,3041.1,3040.9,0.140613]
[1731154458590,3.68590692,3041.1,3040.9,0.140613]
[1731154459287,0.68590692,3041.1,3040.9,0.140613]
[1731154459487,5.00243688,3041.2,3040.9,0.140613]
[1731154460492,0.68590692,3041.1,3040.9,0.140613]
[1731154460892,4.28819875,3041.1,3040.9,0.140613]
[1731154462826,4.43940692,3041.0,3040.9,0.140613]
[1731154463044,1.43940692,3041.0,3040.9,0.140613]
[1731154464628,1.43940692,3041.0,3040.0,0.005]
[1731154464629,0.7684,3040.7,3040.0,0.005]
[1731154464803,0.68571465,3040.6,3040.0,0.005]
[1731154464993,1.23398331,3040.5,3040.0,0.005]
[1731154465392,0.54826866,3040.5,3040.0,0.005]
[1731154465627,0.68571465,3040.6,3040.0,0.005]
[1731154466238,1.45411465,3040.7,3040.0,0.005]
[1731154466393,1.45411465,3040.9,3040.1,0.7814]
[1731154466789,0.7684,3040.9,3040.1,0.7814]
[1731154467019,1.45411465,3040.9,3040.1,0.7814]
[1731154467912,0.93398331,3040.8,3040.0,0.005]
[1731154468117,0.7684,3040.7,3040.0,0.005]
[1731154468293,1.45411465,3040.7,3040.0,0.005]
[1731154469321,0.7684,3040.7,3040.0,0.005]
[1731154471695,0.7684,3040.7,3039.8,0.7091]
[1731154472538,1.46511465,3040.9,3039.8,0.7091]
[1731154473851,0.68571465,3040.9,3039.8,0.7091]
[1731154474058,0.68571465,3041.0,3039.8,0.7091]
[1731154475459,0.68571465,3040.9,3039.8,0.7091]
[1731154475755,0.7794,3040.9,3039.8,0.7091]
[1731154475960,1.46511465,3040.9,3039.8,0.7091]
[1731154476124,0.54936866,3040.8,3039.8,0.7091]
[1731154476648,0.7794,3040.7,3039.8,0.7091]
[1731154477733,1.46511465,3040.7,3039.8,0.7091]
[1731154478625,0.7794,3040.7,3039.8,0.7091]
[1731154480034,1.46511465,3040.7,3039.8,0.7091]
[1731154480244,0.20144833,3040.6,3039.8,0.7091]
[1731154483673,1.23508331,3040.8,3039.8,0.7091]
[1731154483836,0.68571465,3040.7,3039.8,0.7091]
[1731154485268,0.68571465,3040.6,3039.8,0.7091]
[1731154486831,0.7727,3040.5,3038.8,0.8211]
[1731154487033,1.45841465,3040.5,3038.9,1.08736037]
[1731154487239,0.68571465,3040.3,3039.0,0.8211]
[1731154487539,0.68571465,3040.3,3039.2,0.8211]
[1731154487743,1.23441331,3040.3,3039.2,0.8211]
[1731154488884,0.68571465,3040.4,3039.2,0.8211]
[1731154489564,4.02857198,3040.6,3039.2,0.8211]
[1731154489565,0.68571465,3040.5,3039.2,0.8211]
[1731154489874,3.0,3040.6,3039.2,0.8211]
[1731154489875,0.68571465,3040.6,3039.2,0.8211]
[1731154490282,0.68571465,3040.5,3039.3,0.08405396]
[1731154490446,0.68571465,3040.5,3039.0,0.01]
[1731154490447,0.68571465,3040.5,3039.4,0.8299]
[1731154491275,0.793,3040.4,3039.5,0.06578832]
[1731154491505,0.68571465,3040.5,3039.5,0.8299]
[1731154492196,0.68571465,3040.6,3039.5,0.8299]
[1731154492893,0.68571465,3040.7,3039.5,0.8299]
[1731154493062,0.68571465,3040.6,3039.5,0.8299]
[1731154493394,0.68571465,3040.7,3039.5,0.8299]
[1731154493887,1.23508331,3040.8,3039.5,0.8299]
[1731154495805,0.68571465,3040.9,3039.7,0.01]
[1731154495969,0.68571465,3041.2,3039.8,0.8299]
[1731154496302,0.68571465,3041.2,3039.9,0.08368481]
[1731154496470,0.68571465,3041.2,3040.0,0.8299]
[1731154497759,0.68571465,3041.3,3040.0,0.8299]
[1731154498555,0.68571465,3041.3,3040.1,0.91339041]
[1731154498760,0.68571465,3041.4,3040.1,0.91339041]
[1731154498961,0.68571465,3041.4,3040.1,0.8399]
[1731154499462,0.68571465,3041.4,3040.3,0.8299]
[1731154500991,0.68571465,3041.4,3040.4,0.06576593]
[1731154501213,0.68571465,3041.6,3040.5,0.8299]
[1731154501497,0.68571465,3041.7,3040.5,0.8299]
[1731154502413,1.65014331,3041.6,3040.5,0.8299]
[1731154502559,0.68571465,3041.3,3040.5,0.8299]
[1731154502776,0.793,3041.2,3040.5,0.8299]
[1731154502978,1.47871465,3041.2,3040.5,0.8299]
[1731154503275,0.68571465,3041.1,3040.5,0.8299]
[1731154503474,1.47871465,3041.2,3040.5,0.8299]
[1731154503769,2.02944331,3041.2,3040.5,0.8299]
[1731154504713,0.68571465,3041.1,3040.5,0.8299]
[1731154504887,3.68571465,3041.1,3040.5,0.8299]
[1731154506377,3.68571465,3041.1,3039.3,0.02]
[1731154506378,0.68571465,3040.9,3040.2,0.8144]
[1731154506691,1.45181465,3040.7,3039.2,0.8144]
[1731154507014,0.68571465,3040.6,3039.4,0.8144]
[1731154509393,0.68571465,3040.6,3039.5,0.8144]
[1731154509879,0.68571465,3040.6,3039.6,0.89811853]
[1731154510074,0.68571465,3040.6,3039.7,0.8144]
[1731154510287,0.68571465,3040.6,3039.8,0.08359789]
[1731154511317,0.68571465,3040.5,3039.8,0.08359789]
[1731154511535,0.68571465,3040.4,3039.8,0.08359789]
[1731154511833,0.68571465,3040.4,3039.7,0.8144]
[1731154512129,0.68571465,3040.4,3039.8,0.08365287]
[1731154512425,1.05198723,3040.4,3039.8,0.08365287]
[1731154512630,1.05198723,3040.4,3039.7,0.8144]
[1731154513134,1.05198723,3040.4,3039.8,0.08363454]
[1731154513502,1.05198723,3040.4,3039.7,0.8144]
[1731154513831,1.05198723,3040.4,3039.8,0.08359789]
[1731154514190,1.05198723,3040.4,3039.7,0.8144]
[1731154514695,0.68571465,3040.5,3039.9,0.8144]
[1731154517023,0.68571465,3040.4,3039.9,0.8144]
[1731154517937,0.68571465,3040.1,3039.4,2.4518]
[1731154518352,0.68571465,3040.0,3039.5,0.08389892]
[1731154518646,1.15714331,3040.0,3039.4,2.4518]
[1731154519214,0.7661,3039.9,3039.4,1.6374]
[1731154519642,1.45181465,3039.9,3039.5,0.08389892]
[1731154521475,1.3161,3039.6,3039.5,0.08389892]
[1731154521639,5.50199612,3039.6,3039.5,0.08389892]
[1731154521939,5.50199612,3039.6,3039.4,1.6374]
[1731154521940,0.7661,3039.5,3039.4,1.6374]
[1731154522100,0.68475267,3039.5,3039.4,1.6374]
[1731154522301,0.68475267,3039.6,3039.4,1.72157725]
[1731154522505,0.68475267,3039.7,3039.4,1.72157725]
[1731154522754,1.37142931,3039.9,3039.4,1.72157725]
[1731154522755,0.68475267,3039.9,3039.5,0.8144]
[1731154523045,0.51832252,3039.9,3039.5,0.8144]
[1731154523212,0.51832252,3039.9,3039.6,0.08406691]
[1731154525749,0.47142866,3040.0,3039.6,0.08406691]
[1731154526058,0.68475267,3040.2,3039.6,0.08406691]
[1731154526554,0.68475267,3040.3,3039.6,0.08406691]
[1731154526952,0.68475267,3040.3,3039.5,0.8144]
[1731154527433,0.68475267,3040.4,3039.5,0.8144]
[1731154527637,0.54662965,3040.3,3039.5,0.8144]
[1731154527832,1.23138232,3040.3,3039.5,0.8144]
[1731154528029,0.54662965,3040.3,3039.5,0.8144]
[1731154529347,1.23138232,3040.3,3039.5,0.8144]
[1731154529934,0.54662965,3040.3,3039.5,0.8144]
[1731154531024,0.7545,3040.2,3039.5,0.8144]
[1731154531224,0.7545,3040.2,3039.4,1.6374]
[1731154531425,0.49858823,3040.1,3039.4,1.6374]
[1731154532355,0.7545,3039.9,3039.4,1.6374]
[1731154532661,4.43925267,3039.9,3039.4,1.6374]
[1731154532882,0.68475267,3039.8,3039.4,1.6374]
[1731154533169,0.68475267,3039.8,3039.5,0.08408008]
[1731154533465,1.3045,3039.6,3039.5,0.08408008]
[1731154533852,1.3045,3039.6,3039.4,1.6374]
[1731154534054,0.55,3039.5,3039.4,1.6374]
[1731154534431,0.7545,3039.6,3039.4,1.72159345]
[1731154534935,0.55,3039.5,3039.4,1.6374]
[1731154535139,1.10358823,3039.5,3039.4,1.6374]
[1731154535375,0.55358823,3039.5,3039.4,1.6374]
[1731154535667,3.7545,3039.6,3039.4,1.6374]
[1731154535668,0.7545,3039.6,3039.4,1.6374]
[1731154536450,0.7545,3039.6,3039.5,0.08413312]
[1731154536663,1.3045,3039.6,3039.4,1.6374]
[1731154537875,0.55,3039.5,3039.4,1.6374]
[1731154538648,0.54662965,3039.7,3039.4,1.6374]
[1731154538948,1.56088398,3040.2,3039.4,1.6374]
[1731154538949,0.65170313,3040.2,3039.5,0.08415144]
[1731154539176,0.8043,3040.1,3039.5,0.08415144]
[1731154539353,1.48905267,3040.1,3039.5,0.08415144]
[1731154540166,0.01,3039.9,3039.5,0.08415144]
[1731154540341,0.55,3039.6,3039.5,0.08415144]
[1731154540542,0.55,3039.6,3039.4,1.6374]
[1731154541077,0.8043,3039.9,3039.4,1.6374]
[1731154541375,0.55,3039.8,3039.5,0.084195]
[1731154542438,0.55,3039.8,3039.4,1.6374]
[1731154542439,0.55,3039.6,3039.4,1.6374]
[1731154542783,0.55,3039.6,3039.5,0.08419353]
[1731154544244,3.55,3039.6,3039.5,0.08419353]
[1731154544581,0.55,3039.6,3039.5,0.08419353]
[1731154545676,0.55,3039.6,3039.4,1.6374]
[1731154545840,0.55,3039.6,3039.5,0.08425836]
[1731154546044,1.02386579,3039.6,3039.5,0.08425836]
[1731154547049,1.02386579,3039.6,3039.4,1.6374]
[1731154548258,0.7502,3039.5,3039.4,1.6374]
[1731154550873,0.47386579,3039.6,3039.4,1.6374]
[1731154551190,4.356487,3039.7,3039.4,1.6374]
[1731154551191,0.68475267,3039.7,3039.5,0.08423169]
[1731154551522,0.68475267,3039.8,3039.5,0.08423169]
[1731154551784,0.68475267,3039.7,3039.5,0.08423169]
[1731154552352,0.55,3039.6,3039.5,0.08423169]
[1731154553870,1.3002,3039.6,3039.5,0.08423169]
[1731154554194,0.68475267,3039.7,3039.5,0.08423169]
[1731154554361,0.68475267,3039.7,3039.5,0.83623169]
[1731154555293,3.0,3039.8,3039.5,0.83623169]
[1731154555495,0.68475267,3039.9,3039.5,0.83623169]
[1731154558057,0.68475267,3039.9,3039.5,0.08423169]
[1731154558274,1.43495267,3039.9,3039.5,0.08423169]
[1731154561003,0.55,3039.8,3039.5,0.08423169]
[1731154561204,0.19849527,3039.7,3039.5,0.08423169]
[1731154561506,0.68475267,3039.9,3039.5,0.08423169]
[1731154562567,0.68475267,3039.9,3039.6,0.752]
[1731154562976,0.68475267,3039.9,3039.7,0.08401822]
[1731154563571,4.02704386,3040.1,3039.7,0.08401822]
[1731154563572,1.02704386,3040.1,3039.7,0.08401822]
[1731154566781,1.02704386,3040.1,3039.8,0.823]
[1731154567118,1.02704386,3040.1,3039.9,0.08382244]
[1731154568279,4.26689118,3040.1,3039.9,0.08382244]
[1731154568522,4.26689118,3040.1,3039.8,0.823]
[1731154569087,1.02704386,3040.1,3039.8,0.823]
[1731154569415,1.02704386,3040.1,3039.9,0.083765]
[1731154572013,3.0,3040.3,3039.9,0.083765]
[1731154572326,0.68437262,3040.4,3039.8,0.823]
[1731154573724,0.68437262,3040.5,3039.8,0.823]
[1731154574524,1.15551427,3040.5,3039.8,0.823]
[1731154574896,0.47114165,3040.5,3039.8,0.823]
[1731154575108,0.68437262,3040.6,3039.8,0.823]
[1731154575301,0.68437262,3040.5,3039.8,0.823]
[1731154575823,0.68437262,3040.6,3039.8,0.823]
[1731154576319,0.68437262,3040.5,3039.8,0.823]
[1731154576629,0.68437262,3040.6,3039.8,0.823]
[1731154576839,0.85551427,3040.5,3039.8,0.823]
[1731154578233,0.68437262,3040.3,3039.8,0.823]
[1731154580832,0.68437262,3040.2,3039.8,0.823]
[1731154581015,0.68437262,3040.1,3039.8,0.823]
[1731154581328,0.68437262,3040.2,3039.8,0.823]
[1731154581586,4.60019994,3040.2,3039.8,0.823]
[1731154582407,1.60019994,3040.2,3039.8,0.823]
[1731154583000,0.91582732,3040.2,3039.8,0.823]
[1731154583195,0.68437262,3040.3,3039.8,0.823]
[1731154585097,0.68437262,3040.2,3039.8,0.823]
[1731154585295,0.68437262,3040.1,3039.8,0.823]
[1731154586534,0.68437262,3040.1,3039.4,1.6374]
[1731154586724,0.68437262,3040.0,3039.6,0.7954]
[1731154586897,0.68437262,3040.0,3039.7,0.08382818]
[1731154588499,0.68437262,3039.9,3039.4,2.4328]
[1731154588697,0.68437262,3039.9,3039.5,0.0840372]
[1731154588939,0.68437262,3039.9,3039.4,2.4328]
[1731154589860,0.17114165,3039.8,3039.4,2.4328]
[1731154590365,0.17114165,3039.8,3039.5,0.08405488]
[1731154591064,0.85551427,3039.8,3039.5,0.08405488]
[1731154592843,0.68437262,3039.7,3039.4,2.4328]
[1731154593044,0.85551427,3039.8,3039.6,0.08399455]
[1731154593257,0.18825581,3039.7,3039.5,0.08405488]
[1731154593471,0.87262843,3039.7,3039.4,2.4328]
[1731154593643,0.87262843,3039.7,3039.6,0.08399455]
[1731154593842,0.87262843,3039.7,3039.5,0.08405488]
[1731154594082,0.87262843,3039.7,3039.6,0.08401223]
[1731154594282,0.18825581,3039.7,3039.6,0.08401223]
[1731154594583,0.87262843,3039.7,3039.6,0.08401223]
[1731154594746,0.87262843,3039.7,3039.4,2.4328]
[1731154595081,0.87262843,3039.7,3039.5,0.08407256]
[1731154595241,0.20708139,3039.6,3039.5,0.08407256]
[1731154595437,0.20708139,3039.6,3039.4,1.6374]
[1731154595438,0.89159125,3039.6,3039.4,1.6374]
[1731154595759,0.20708139,3039.6,3039.5,0.08407256]
[1731154596544,5.9451107,3039.6,3039.5,0.08407256]
[1731154596777,4.57368139,3039.6,3039.5,0.08407256]
[1731154597291,5.9451107,3039.6,3039.5,0.08407256]
[1731154599513,5.22127249,3039.6,3039.5,0.08407256]
[1731154599710,3.55,3039.5,3039.4,1.6374]
[1731154600014,5.63084005,3039.5,3039.4,1.6374]
[1731154601318,5.08084005,3039.5,3039.4,1.6374]
[1731154601513,5.63028574,3039.5,3039.4,1.6374]
[1731154601719,3.71191078,3039.5,3039.4,1.6374]
[1731154602081,4.73826371,3039.5,3039.4,1.72168468]
[1731154602417,4.39618116,3039.5,3039.4,1.72168468]
[1731154602621,3.71191078,3039.5,3039.4,1.72168468]
[1731154602794,4.39616145,3039.5,3039.4,1.72168468]
[1731154603180,1.39616145,3039.5,3039.4,1.72168468]
[1731154603481,0.71191078,3039.5,3039.4,1.72168468]
[1731154603677,1.39616145,3039.5,3039.4,1.72168468]
[1731154604919,0.68425067,3039.5,3039.4,1.72168468]
[1731154605839,1.02635293,3039.6,3039.4,1.72168468]
[1731154606402,0.68411969,3039.5,3039.4,1.72168468]
[1731154606705,1.02635293,3039.6,3039.4,1.72168468]
[1731154606909,0.68410066,3039.5,3039.4,1.72168468]
[1731154607111,1.1739716,3039.5,3039.4,1.72168468]
[1731154607944,0.48987094,3039.5,3039.4,1.72168468]
[1731154608239,1.17391046,3039.5,3039.4,1.72168468]
[1731154608935,0.48987094,3039.5,3039.4,1.72168468]
[1731154610018,1.17367831,3039.5,3039.4,1.72168468]
[1731154610215,0.48987094,3039.5,3039.4,1.72168468]
[1731154610703,1.51622387,3039.5,3039.4,1.72168468]
[1731154611161,4.51622387,3039.5,3039.4,1.72168468]
[1731154611304,5.89052387,3039.5,3039.4,1.72168468]
[1731154611719,5.89052387,3039.5,3039.4,1.6374]
[1731154612060,6.23266022,3039.5,3039.4,1.6374]
[1731154612663,5.88944387,3039.5,3039.4,1.6374]
[1731154612959,6.23266022,3039.5,3039.4,1.6374]
[1731154617676,1.86417094,3039.5,3039.4,1.6374]
[1731154618074,1.87417094,3039.5,3039.4,1.62289094]
[1731154618274,1.87417094,3039.5,3039.4,0.01450906]
[1731154618773,0.55,3039.4,3039.0,2.478595]
[1731154618978,0.24241709,3039.3,3039.0,2.478595]
[1731154619140,0.55,3039.2,3039.0,2.478595]
[1731154619345,0.89362073,3039.2,3039.0,2.478595]
[1731154621748,1.31417094,3039.5,3039.0,2.478595]
[1731154622048,0.55,3039.3,3039.0,2.478595]
[1731154626064,1.9177637,3039.1,3039.0,2.478595]
[1731154626809,4.9177637,3039.1,3039.0,2.478595]
[1731154628287,4.3677637,3039.1,3039.0,3.259495]
[1731154628515,1.3677637,3039.1,3039.0,3.66988315]
[1731154630613,1.3677637,3039.1,3039.0,3.34393365]
[1731154631321,0.68467149,3039.3,3039.0,3.34393365]
[1731154631622,0.68467149,3039.2,3039.0,3.259495]
[1731154632114,0.68467149,3039.2,3039.1,0.08437388]
[1731154633080,0.68292497,3039.2,3039.1,0.08437388]
[1731154634651,1.02700724,3039.3,3039.1,0.08437388]
[1731154634850,1.02700724,3039.3,3039.0,3.259495]
[1731154635455,1.3677637,3039.4,3039.0,3.259495]
[1731154635456,1.02700724,3039.2,3039.0,3.259495]
[1731154636841,1.02700724,3039.2,3039.0,2.478595]
[1731154637020,1.02700724,3039.2,3039.1,0.08424628]
[1731154637921,1.3677637,3039.3,3039.1,0.08424628]
[1731154638122,4.3677637,3039.3,3039.1,0.08424628]
[1731154639627,4.3677637,3039.2,3039.1,0.08424628]
[1731154639852,1.3677637,3039.2,3039.1,0.08424628]
[1731154640218,1.97593167,3039.2,3039.1,0.08424628]
[1731154640519,0.60816797,3039.2,3039.1,0.08424628]
[1731154640722,1.15816797,3039.2,3039.1,0.08424628]
[1731154641254,0.60816797,3039.2,3039.0,2.478595]
[1731154641764,3.60816797,3039.2,3039.0,2.478595]
[1731154641994,1.37718672,3039.1,3039.0,2.478595]
[1731154645774,6.09066227,3039.1,3039.0,2.478595]
[1731154647970,1.37718672,3039.1,3039.0,2.478595]
[1731154649519,4.37718672,3039.1,3039.0,2.478595]
[1731154650375,1.37718672,3039.1,3039.0,2.478595]
[1731154652475,1.92718672,3039.1,3039.0,2.478595]
[1731154653281,5.57539396,3039.1,3039.0,2.478595]
[1731154654225,3.56648672,3039.1,3039.0,2.478595]
[1731154654381,1.71325465,3039.1,3039.0,2.478595]
[1731154655611,4.71325465,3039.1,3039.0,2.478595]
[1731154656395,1.3193,3039.1,3039.0,2.478595]
[1731154656726,4.3193,3039.1,3039.0,2.478595]
[1731154659803,6.3751098,3039.1,3039.0,1.6932941]
[1731154660007,7.09784398,3039.1,3039.0,1.6932941]
[1731154660243,5.04203418,3039.1,3039.0,1.6932941]
[1731154661431,4.49203418,3039.1,3039.0,1.6932941]
[1731154661639,5.04203418,3039.1,3039.0,1.47501326]
[1731154662709,5.04203418,3039.1,3039.0,0.48571325]
[1731154663144,0.55,3038.9,3038.0,0.8258]
[1731154663326,0.68481747,3038.2,3038.0,0.8258]
[1731154663726,0.68481747,3038.3,3038.0,0.8258]
[1731154664039,0.68481747,3038.2,3038.0,0.8258]
[1731154664237,0.68481747,3038.3,3038.0,0.8258]
[1731154664659,0.68481747,3038.2,3038.0,0.8258]
[1731154666575,0.68481747,3038.1,3038.0,0.8258]
[1731154667135,0.47120437,3038.1,3037.9,0.140613]
[1731154667441,4.49843057,3038.1,3037.9,0.140613]
[1731154667643,4.0272262,3038.0,3037.9,0.140613]
[1731154668047,1.0272262,3038.0,3037.9,0.140613]
[1731154668247,2.16403275,3038.0,3037.9,0.140613]
[1731154668450,5.50644149,3038.0,3037.9,0.140613]
[1731154668633,4.13680655,3038.0,3037.9,0.140613]
[1731154668833,5.50644149,3038.0,3037.9,0.140613]
[1731154669074,4.13680655,3038.0,3037.9,0.140613]
[1731154669251,4.91330655,3038.0,3037.9,0.140613]
[1731154669839,6.28037859,3038.0,3037.9,0.140613]
[1731154670146,4.91330655,3038.0,3037.9,0.140613]
[1731154670644,6.6232158,3038.0,3037.9,0.140613]
[1731154670847,7.29620157,3038.0,3037.0,0.7815]
[1731154671159,0.6832975,3037.5,3037.0,0.7815]
[1731154671361,0.6832975,3037.4,3037.0,0.7815]
[1731154671560,4.02494626,3037.6,3037.0,0.7815]
[1731154671561,3.6832975,3037.5,3037.0,0.7815]
[1731154671871,0.6832975,3037.4,3037.0,0.7815]
[1731154672079,0.6832975,3037.5,3037.0,0.7815]
[1731154672248,0.6832975,3038.2,3037.0,0.7815]
[1731154672573,0.6832975,3038.3,3037.0,0.7815]
[1731154672773,0.17082438,3038.2,3037.0,0.7815]
[1731154673147,1.63062188,3038.2,3037.0,0.7815]
[1731154673451,0.6832975,3038.1,3037.0,0.7815]
[1731154674073,0.55,3038.0,3037.0,0.7815]
[1731154676079,0.55,3037.8,3037.0,0.7815]
[1731154676253,0.72832975,3037.8,3037.0,0.7815]
[1731154676983,0.72832975,3037.8,3034.9,1.12527917]
[1731154676984,0.55,3037.6,3036.3,0.7538]
[1731154677541,4.2332975,3037.6,3036.3,0.7538]
[1731154677740,1.2332975,3037.6,3036.3,0.7538]
[1731154677979,0.55,3037.4,3036.3,0.7538]
[1731154678187,0.50412975,3037.5,3036.3,0.7538]
[1731154678678,0.55,3037.4,3036.3,0.7538]
[1731154679638,0.50412975,3037.5,3036.3,0.7538]
[1731154679846,0.55,3037.6,3036.5,0.7538]
[1731154680273,0.55,3037.7,3036.5,0.7538]
[1731154680573,1.83294626,3038.0,3036.5,0.7538]
[1731154680574,0.6832975,3038.0,3036.7,0.7538]
[1731154680749,0.85412188,3038.2,3036.8,0.82964729]
[1731154680949,0.18790681,3038.1,3036.8,0.7538]
[1731154681151,0.85412188,3038.2,3036.8,0.7538]
[1731154681554,0.66573864,3038.0,3036.8,0.7538]
[1731154681775,0.6832975,3038.1,3036.8,0.7538]
[1731154681988,0.85412188,3038.2,3036.8,0.7538]
[1731154682277,0.65257524,3038.1,3036.8,0.7538]
[1731154682477,0.55,3038.0,3036.8,0.7538]
[1731154682879,1.4912975,3037.9,3036.8,0.7538]
[1731154683081,3.808,3037.9,3036.8,0.7538]
[1731154683286,1.4912975,3037.9,3036.8,0.7538]
[1731154684998,0.55,3037.8,3036.8,0.7538]
[1731154685288,0.55,3037.6,3036.8,0.23984512]
[1731154685492,0.55,3037.4,3035.7,0.6722263]
[1731154685791,0.55,3037.2,3035.8,0.06587215]
[1731154685953,1.2332975,3037.2,3035.8,0.14433183]
[1731154686157,1.2332975,3037.2,3035.8,0.06587215]
[1731154686453,0.6832975,3037.4,3036.0,0.01]
[1731154686656,0.6832975,3037.6,3036.1,0.07831473]
[1731154686878,0.6832975,3037.6,3036.2,0.06585975]
[1731154687079,1.52403735,3037.5,3036.2,0.06585975]
[1731154687279,0.77123735,3037.5,3036.0,0.01]
[1731154687486,1.45453485,3037.5,3036.0,0.01]
[1731154687692,0.77123735,3037.5,3036.0,0.01]
[1731154687999,0.22123735,3037.5,3036.0,0.01]
[1731154688167,0.50412975,3037.7,3036.0,0.01]
[1731154688168,4.18742725,3037.7,3036.0,0.01]
[1731154688358,1.18742725,3037.7,3036.1,0.8226]
[1731154688559,0.6832975,3037.6,3036.1,0.8226]
[1731154689289,0.55,3037.5,3036.1,0.8226]
[1731154689455,0.42332975,3037.4,3036.1,0.8226]
[1731154690165,0.55,3037.3,3036.1,0.8226]
[1731154690371,0.55,3037.3,3036.3,0.8226]
[1731154697684,4.77184987,3037.4,3036.3,0.8226]
[1731154697887,1.08855237,3037.4,3036.3,0.8226]
[1731154698066,0.40885524,3037.3,3036.3,0.8226]
[1731154698294,0.66522262,3037.4,3036.3,0.8226]
[1731154698496,1.18742725,3037.7,3036.3,0.8226]
[1731154698810,0.6832975,3037.7,3036.3,0.8226]
[1731154699006,0.6832975,3037.8,3036.3,0.8226]
[1731154699212,0.6832975,3037.7,3036.3,0.8226]
[1731154699922,1.3028,3037.6,3036.3,0.8226]
[1731154700122,4.9860975,3037.6,3036.3,0.8226]
[1731154700328,0.55,3037.4,3036.3,0.8226]
[1731154700705,1.2332975,3037.4,3036.3,0.8226]
[1731154703636,0.6832975,3037.3,3036.3,0.8226]
[1731154704543,1.2332975,3037.4,3036.3,0.8226]
[1731154704735,0.6832975,3037.3,3036.3,0.8226]
[1731154705030,1.26923231,3037.3,3036.3,0.8226]
[1731154705534,4.26923231,3037.3,3036.3,0.8226]
[1731154706509,0.6832975,3037.2,3036.3,0.8226]
[1731154708512,0.6832975,3037.1,3036.3,0.8226]
[1731154708712,1.21271536,3037.1,3036.3,0.8226]
[1731154708907,0.6832975,3037.1,3036.3,0.8226]
[1731154711625,0.6832975,3037.0,3036.3,0.8226]
[1731154713138,0.6832975,3036.9,3036.3,0.8226]
[1731154713546,0.6832975,3036.8,3036.3,0.8226]
[1731154715319,0.6832975,3036.7,3036.3,0.8226]
[1731154715521,1.15412188,3036.7,3036.3,0.8226]
[1731154715750,0.47082438,3036.7,3036.3,0.8226]
[1731154716143,1.15412188,3036.7,3036.3,0.8226]
[1731154717260,0.47082438,3036.7,3036.3,0.8226]
[1731154717854,1.15412188,3036.7,3036.3,0.8226]
[1731154718362,0.6832975,3036.7,3036.3,0.8226]
[1731154718654,0.6832975,3036.6,3036.3,0.8226]
[1731154718814,0.6832975,3036.5,3036.3,0.8226]
[1731154719020,0.6832975,3036.5,3035.6,0.7935]